fUSD/lending_fUSD_20260515
["ID","MTS","AMOUNT","RATE_DAILY","PERIOD"]
[422304303,1778807440000,-152.0,0.0001471,2]
[422304306,1778807440000,-194.72792766,0.0001471,2]
[422304312,1778807440000,-1000.0,0.0001471,2]
[422304318,1778807440000,-151.0,0.0001471,2]
[422304324,1778807440000,-151.0,0.0001471,2]
[422304317,1778807440000,-191.49654804,0.0001471,2]
[422304319,1778807440000,-644.79446246,0.0001471,2]
[422304320,1778807440000,-151.0,0.0001471,2]
[422304323,1778807440000,-151.0,0.0001471,2]
[422304322,1778807440000,-151.0,0.0001471,2]
[422304321,1778807440000,-151.0,0.0001471,2]
[422304331,1778807440000,-150.0,0.00014726,2]
[422304325,1778807440000,-151.0,0.0001471,2]
[422304330,1778807440000,-194.72792766,0.0001471,2]
[422304327,1778807440000,-151.0,0.0001471,2]
[422304329,1778807440000,-151.0,0.0001471,2]
[422304326,1778807440000,-151.0,0.0001471,2]
[422304304,1778807440000,-151.0,0.0001471,2]
[422304315,1778807440000,-151.0,0.0001471,2]
[422304298,1778807440000,-151.0,0.0001471,2]
[422304288,1778807440000,-247.65963397,0.0001471,2]
[422304301,1778807440000,-151.0,0.0001471,2]
[422304328,1778807440000,-279.9045709,0.0001471,2]
[422304276,1778807440000,-151.0,0.0001471,2]
[422304284,1778807440000,-151.0,0.0001471,2]
[422304283,1778807440000,-227.34163157,0.0001471,2]
[422304275,1778807440000,-1000.0,0.0001471,2]
[422304277,1778807440000,-152.0,0.0001471,2]
[422304281,1778807440000,-174.61919141,0.0001471,2]
[422304274,1778807440000,-152.0,0.0001471,2]
[422304273,1778807440000,-1000.0,0.0001471,2]
[422304278,1778807440000,-219.23011724,0.0001471,2]
[422304280,1778807440000,-151.0,0.0001471,2]
[422304282,1778807440000,-152.0,0.0001471,2]
[422304279,1778807440000,-1000.0,0.0001471,2]
[422304297,1778807440000,-1934.38338737,0.0001471,2]
[422304286,1778807440000,-235.75327194,0.0001471,2]
[422304287,1778807440000,-1000.0,0.0001471,2]
[422304289,1778807440000,-151.0,0.0001471,2]
[422304292,1778807440000,-1000.0,0.0001471,2]
[422304291,1778807440000,-244.476143,0.0001471,2]
[422304295,1778807440000,-1000.0,0.0001471,2]
[422304294,1778807440000,-253.52176029,0.0001471,2]
[422304290,1778807440000,-152.0,0.0001471,2]
[422304293,1778807440000,-151.0,0.0001471,2]
[422304296,1778807440000,-152.0,0.0001471,2]
[422304300,1778807440000,-152.0,0.0001471,2]
[422304307,1778807440000,-152.0,0.0001471,2]
[422304299,1778807440000,-262.90206542,0.0001471,2]
[422304302,1778807440000,-272.62944185,0.0001471,2]
[422304285,1778807440000,-152.0,0.0001471,2]
[422304338,1778807440000,-200.0,0.00014802,2]
[422304332,1778807440000,-150.0,0.00014737,2]
[422304339,1778807440000,-151.0,0.0001482,2]
[422304364,1778807440000,-150.0,0.00014986,2]
[422304365,1778807440000,-150.0,0.00014986,2]
[422304369,1778807440000,-150.00000099,0.0001499,2]
[422304373,1778807440000,-300.0,0.00014999,2]
[422304374,1778807440000,-666.0,0.00014999,2]
[422304384,1778807440000,-219.0,0.00015,2]
[422304375,1778807440000,-300.0,0.00014999,2]
[422304379,1778807440000,-78377.0559513,0.00015,2]
[422304381,1778807440000,-219.0,0.00015,2]
[422304383,1778807440000,-219.0,0.00015,2]
[422304376,1778807440000,-300.0,0.00014999,2]
[422304377,1778807440000,-3032002.82232199,0.00015,2]
[422304382,1778807440000,-219.0,0.00015,2]
[422304380,1778807440000,-6717.9107752,0.00015,2]
[422304378,1778807440000,-1327.49,0.00015,2]
[422304386,1778807440000,-225.08110236,0.00015,2]
[422304396,1778807440000,-151.0,0.00015,2]
[422304390,1778807440000,-2075.94096564,0.00015,2]
[422304395,1778807440000,-151.0,0.00015,2]
[422304385,1778807440000,-219.0,0.00015,2]
[422304394,1778807440000,-151.0,0.00015,2]
[422304392,1778807440000,-8081.766424,0.00015,2]
[422304389,1778807440000,-3596076.6761104,0.00015,2]
[422304388,1778807440000,-156.97555839,0.00015,2]
[422304387,1778807440000,-251.73418071,0.00015,2]
[422304342,1778807440000,-150.0,0.00014856,2]
[422304393,1778807440000,-8250421.75473606,0.00015,2]
[422304367,1778807440000,-150.0,0.00014986,2]
[422304368,1778807440000,-150.0,0.00014986,2]
[422304391,1778807440000,-3143.94310394,0.00015,14]
[422304372,1778807440000,-300.0,0.00014999,2]
[422304366,1778807440000,-150.0,0.00014986,2]
[422304340,1778807440000,-150.0,0.0001482,2]
[422304334,1778807440000,-150.0,0.00014791,2]
[422304341,1778807440000,-500.0,0.00014841,2]
[422304344,1778807440000,-350.0,0.00014868,2]
[422304336,1778807440000,-150.0,0.00014799,2]
[422304335,1778807440000,-150.0,0.00014799,2]
[422304337,1778807440000,-500.0,0.00014802,2]
[422304345,1778807440000,-151.0,0.00014875,2]
[422304343,1778807440000,-150.0,0.00014861,2]
[422304352,1778807440000,-1647.29957618,0.000149,2]
[422304350,1778807440000,-191.83825966,0.000149,2]
[422304357,1778807440000,-62591.7989573,0.0001495,2]
[422304358,1778807440000,-1069.8350206,0.0001495,2]
[422304333,1778807440000,-151.0,0.00014765,2]
[422304347,1778807440000,-500.0,0.00014879,2]
[422304359,1778807440000,-167639.1213387,0.0001495,2]
[422304363,1778807440000,-150.0,0.00014986,2]
[422304371,1778807440000,-151.0,0.00014997,2]
[422304370,1778807440000,-151.0,0.00014997,2]
[422304362,1778807440000,-150.0,0.00014986,2]
[422304354,1778807440000,-150.0,0.00014921,2]
[422304361,1778807440000,-160.51546821,0.00014986,2]
[422304351,1778807440000,-1906.49669554,0.000149,2]
[422304349,1778807440000,-625.4668107,0.000149,2]
[422304355,1778807440000,-163.07942635,0.00014925,2]
[422304353,1778807440000,-20507.86119266,0.000149,2]
[422304356,1778807440000,-151.0,0.0001493,2]
[422304360,1778807440000,-151.0,0.00014985,2]
[422304439,1778807441000,-151.0,0.00015,2]
[422304435,1778807441000,-440.801872,0.00015,2]
[422304434,1778807441000,-151.0,0.00015,2]
[422304446,1778807441000,-151.0,0.00015,2]
[422304432,1778807441000,-392.85279094,0.00015,2]
[422304429,1778807441000,-440.801872,0.00015,2]
[422304433,1778807441000,-151.0,0.00015,2]
[422304428,1778807441000,-151.0,0.00015,2]
[422304430,1778807441000,-151.0,0.00015,2]
[422304438,1778807441000,-151.0,0.00015,2]
[422304431,1778807441000,-440.801872,0.00015,2]
[422304424,1778807441000,-1021.846359,0.00015,2]
[422304441,1778807441000,-151.0,0.00015,2]
[422304437,1778807441000,-151.0,0.00015,2]
[422304445,1778807441000,-151.0,0.00015,2]
[422304436,1778807441000,-151.0,0.00015,2]
[422304440,1778807441000,-440.801872,0.00015,2]
[422304444,1778807441000,-440.801872,0.00015,2]
[422304443,1778807441000,-440.801872,0.00015,2]
[422304447,1778807441000,-151.0,0.00015,2]
[422304449,1778807441000,-151.0,0.00015,2]
[422304450,1778807441000,-151.0,0.00015,2]
[422304451,1778807441000,-151.0,0.00015,2]
[422304452,1778807441000,-151.0,0.00015,2]
[422304427,1778807441000,-440.801872,0.00015,2]
[422304442,1778807441000,-440.801872,0.00015,2]
[422304425,1778807441000,-151.0,0.00015,2]
[422304408,1778807441000,-818.569036,0.00015,2]
[422304422,1778807441000,-1021.846359,0.00015,2]
[422304448,1778807441000,-151.0,0.00015,2]
[422304397,1778807441000,-818.569036,0.00015,2]
[422304398,1778807441000,-818.569036,0.00015,2]
[422304409,1778807441000,-151.0,0.00015,2]
[422304399,1778807441000,-818.569036,0.00015,2]
[422304400,1778807441000,-818.569036,0.00015,2]
[422304401,1778807441000,-818.569036,0.00015,2]
[422304402,1778807441000,-818.569036,0.00015,2]
[422304405,1778807441000,-818.569036,0.00015,2]
[422304407,1778807441000,-818.569036,0.00015,2]
[422304404,1778807441000,-818.569036,0.00015,2]
[422304403,1778807441000,-818.569036,0.00015,2]
[422304406,1778807441000,-818.569036,0.00015,2]
[422304411,1778807441000,-151.0,0.00015,2]
[422304412,1778807441000,-151.0,0.00015,2]
[422304410,1778807441000,-151.0,0.00015,2]
[422304421,1778807441000,-1021.846359,0.00015,2]
[422304415,1778807441000,-151.0,0.00015,2]
[422304413,1778807441000,-151.0,0.00015,2]
[422304414,1778807441000,-151.0,0.00015,2]
[422304419,1778807441000,-1021.846359,0.00015,2]
[422304417,1778807441000,-1021.846359,0.00015,2]
[422304416,1778807441000,-153.6029,0.00015,2]
[422304420,1778807441000,-1021.846359,0.00015,2]
[422304418,1778807441000,-1021.846359,0.00015,2]
[422304426,1778807441000,-151.0,0.00015,2]
[422304456,1778807441000,-151.0,0.00015,2]
[422304423,1778807441000,-1021.846359,0.00015,2]
[422304454,1778807441000,-151.0,0.00015,2]
[422304484,1778807441000,-151.0,0.0001526,2]
[422304488,1778807441000,-700.09,0.00015464,2]
[422304487,1778807441000,-443.88,0.00015464,2]
[422304489,1778807441000,-200.0,0.00015806,2]
[422304486,1778807441000,-151.0,0.0001537,2]
[422304490,1778807441000,-209.40437684,0.00015806,2]
[422304491,1778807441000,-1428.38747117,0.00015806,2]
[422304492,1778807441000,-209.40437684,0.00015806,2]
[422304495,1778807441000,-589.06985741,0.00015806,2]
[422304494,1778807441000,-2080.17592889,0.00015806,2]
[422304496,1778807441000,-301.00069851,0.00015806,2]
[422304497,1778807441000,-151.0,0.00015806,2]
[422304483,1778807441000,-201.93286099,0.00015258,2]
[422304502,1778807441000,-229.87005247,0.0001611,15]
[422304500,1778807441000,-300.0,0.00016,2]
[422304498,1778807441000,-209.40437684,0.00015806,2]
[422304499,1778807441000,-350.0,0.0001583,2]
[422304507,1778807441000,-217.15233878,0.00016354,2]
[422304510,1778807441000,-2157.14243826,0.00016354,2]
[422304509,1778807441000,-194.72792766,0.00016354,2]
[422304504,1778807441000,-350.0,0.00016324,2]
[422304503,1778807441000,-8183.64,0.00016116,2]
[422304506,1778807441000,-1481.23780761,0.00016354,2]
[422304508,1778807441000,-217.15233878,0.00016354,2]
[422304511,1778807441000,-312.13772435,0.00016354,2]
[422304453,1778807441000,-151.0,0.00015,2]
[422304501,1778807441000,-201.93286099,0.00016079,2]
[422304485,1778807441000,-151.0,0.00015315,2]
[422304493,1778807441000,-187.78006525,0.00015806,2]
[422304482,1778807441000,-151.0,0.00015258,2]
[422304481,1778807441000,-290.26104003,0.00015258,2]
[422304457,1778807441000,-151.0,0.00015,2]
[422304469,1778807441000,-1436.59522057,0.00015108,2]
[422304458,1778807441000,-151.0,0.0001504,2]
[422304461,1778807441000,-724.99268,0.00015068,2]
[422304462,1778807441000,-724.99268,0.00015068,2]
[422304459,1778807441000,-240.22,0.00015068,2]
[422304463,1778807441000,-724.99268,0.00015068,2]
[422304460,1778807441000,-724.99268,0.00015068,2]
[422304464,1778807441000,-724.99268,0.00015068,2]
[422304468,1778807441000,-151.0,0.00015095,2]
[422304467,1778807441000,-724.99268,0.00015068,2]
[422304466,1778807441000,-724.99268,0.00015068,2]
[422304455,1778807441000,-151.0,0.00015,2]
[422304472,1778807441000,-6618.0,0.000152,2]
[422304465,1778807441000,-724.99268,0.00015068,2]
[422304480,1778807441000,-668.65185757,0.00015258,2]
[422304475,1778807441000,-201.93286099,0.00015258,2]
[422304479,1778807441000,-2005.9555727,0.00015258,2]
[422304476,1778807441000,-1377.42282659,0.00015258,2]
[422304478,1778807441000,-181.08010149,0.00015258,2]
[422304505,1778807441000,-200.0,0.00016354,2]
[422304474,1778807441000,-200.0,0.00015258,2]
[422304471,1778807441000,-186.4,0.000152,2]
[422304470,1778807441000,-151.0,0.0001515,2]
[422304473,1778807441000,-151.0,0.00015205,2]
[422304477,1778807441000,-201.93286099,0.00015258,2]
[422304556,1778807442000,-1327.49,0.00017,2]
[422304553,1778807442000,-323.68682015,0.00016902,2]
[422304555,1778807442000,-171.33427658,0.00016956,9]
[422304549,1778807442000,-225.18697532,0.00016902,2]
[422304550,1778807442000,-225.18697532,0.00016902,2]
[422304543,1778807442000,-160.0,0.0001662,2]
[422304541,1778807442000,-3808.92767437,0.00016506,2]
[422304548,1778807442000,-200.0,0.00016902,2]
[422304546,1778807442000,-156.58,0.00016712,2]
[422304547,1778807442000,-601.84,0.00016767,2]
[422304559,1778807442000,-599.60298507,0.00017449,2]
[422304545,1778807442000,-3808.92767437,0.0001671,2]
[422304551,1778807442000,-201.93286099,0.00016902,2]
[422304561,1778807442000,-200.0,0.0001745,2]
[422304558,1778807442000,-209.40437684,0.00017448,2]
[422304557,1778807442000,-186.0,0.0001726,2]
[422304554,1778807442000,-225.18697532,0.00016902,2]
[422304552,1778807442000,-2236.95670848,0.00016902,2]
[422304563,1778807442000,-233.51889341,0.0001745,2]
[422304564,1778807442000,-209.40437684,0.0001745,2]
[422304565,1778807442000,-2319.72410669,0.0001745,2]
[422304562,1778807442000,-233.51889341,0.0001745,2]
[422304566,1778807442000,-335.6632325,0.0001745,2]
[422304567,1778807442000,-233.51889341,0.0001745,2]
[422304570,1778807442000,-300.0,0.00017799,2]
[422304544,1778807442000,-3808.92767437,0.0001666,2]
[422304560,1778807442000,-695.39793187,0.00017449,2]
[422304540,1778807442000,-7431.94628016,0.000165,2]
[422304512,1778807442000,-232.58182938,0.00016354,2]
[422304542,1778807442000,-616.92635506,0.00016612,2]
[422304572,1778807442000,-300.0,0.00017799,2]
[422304513,1778807442000,-217.15233878,0.00016354,2]
[422304514,1778807442000,-3808.92767437,0.00016428,2]
[422304516,1778807442000,-2458.5,0.00016438,2]
[422304519,1778807442000,-151.0,0.00016438,2]
[422304515,1778807442000,-1456.84534706,0.00016438,2]
[422304523,1778807442000,-241.526604,0.00016438,2]
[422304525,1778807442000,-634.203246,0.00016438,2]
[422304521,1778807442000,-151.0,0.00016438,2]
[422304526,1778807442000,-634.203246,0.00016438,2]
[422304517,1778807442000,-186.0,0.00016438,2]
[422304518,1778807442000,-240.22,0.00016438,2]
[422304524,1778807442000,-634.203246,0.00016438,2]
[422304520,1778807442000,-151.0,0.00016438,2]
[422304522,1778807442000,-151.0,0.00016438,2]
[422304528,1778807442000,-634.203246,0.00016438,2]
[422304527,1778807442000,-634.203246,0.00016438,2]
[422304529,1778807442000,-634.203246,0.00016438,2]
[422304531,1778807442000,-634.203246,0.00016438,2]
[422304530,1778807442000,-634.203246,0.00016438,2]
[422304533,1778807442000,-634.203246,0.00016438,2]
[422304532,1778807442000,-634.203246,0.00016438,2]
[422304537,1778807442000,-151.0,0.00016438,2]
[422304534,1778807442000,-634.203246,0.00016438,2]
[422304535,1778807442000,-634.203246,0.00016438,2]
[422304536,1778807442000,-151.0,0.00016438,2]
[422304538,1778807442000,-151.0,0.00016438,2]
[422304539,1778807442000,-4442.34461827,0.000165,2]
[422304568,1778807442000,-3827.98,0.00017572,2]
[422304569,1778807442000,-912.45,0.00017572,2]
[422304576,1778807442000,-1863.09,0.000178,2]
[422304617,1778807442000,-200.0,0.00018546,2]
[422304621,1778807442000,-2494.55939289,0.00018546,2]
[422304622,1778807442000,-360.96183467,0.00018546,2]
[422304620,1778807442000,-225.18697532,0.00018546,2]
[422304619,1778807442000,-251.11897888,0.00018546,2]
[422304624,1778807442000,-1066.39130912,0.000186,2]
[422304627,1778807442000,-1066.39130912,0.000188,2]
[422304626,1778807442000,-1327.49,0.000188,2]
[422304636,1778807442000,-200.0,0.00019094,2]
[422304633,1778807442000,-625.88462833,0.00019,2]
[422304629,1778807442000,-300.0,0.00018999,2]
[422304631,1778807442000,-666.0,0.00018999,2]
[422304628,1778807442000,-217.15233878,0.00018817,2]
[422304632,1778807442000,-2169.55567965,0.00019,2]
[422304635,1778807442000,-789.58,0.00019038,2]
[422304625,1778807442000,-789.58,0.00018764,2]
[422304634,1778807442000,-70843.85810045,0.00019,2]
[422304630,1778807442000,-300.0,0.00018999,2]
[422304638,1778807442000,-233.51889341,0.00019094,2]
[422304649,1778807442000,-151.0,0.00019178,2]
[422304651,1778807442000,-151.0,0.00019178,2]
[422304637,1778807442000,-260.4103811,0.00019094,2]
[422304639,1778807442000,-2586.85809042,0.00019094,2]
[422304574,1778807442000,-666.0,0.00017799,2]
[422304641,1778807442000,-374.31742255,0.00019094,2]
[422304645,1778807442000,-308.0,0.000191,2]
[422304647,1778807442000,-150.0,0.00019178,2]
[422304618,1778807442000,-215.82785983,0.00018546,2]
[422304616,1778807442000,-1489.69,0.00018533,2]
[422304643,1778807442000,-218.57889455,0.00019094,2]
[422304614,1778807442000,-789.58,0.0001849,2]
[422304612,1778807442000,-1066.39130912,0.000184,2]
[422304599,1778807442000,-242.15909246,0.00017998,2]
[422304580,1778807442000,-150.0,0.00017808,2]
[422304598,1778807442000,-200.0,0.00017998,2]
[422304592,1778807442000,-151.62967,0.00017808,2]
[422304593,1778807442000,-151.62967,0.00017808,2]
[422304578,1778807442000,-28753.0,0.000178,2]
[422304588,1778807442000,-151.62967,0.00017808,2]
[422304595,1778807442000,-151.62967,0.00017808,2]
[422304585,1778807442000,-151.62967,0.00017808,2]
[422304597,1778807442000,-151.62967,0.00017808,2]
[422304582,1778807442000,-151.62967,0.00017808,2]
[422304611,1778807442000,-679.0,0.0001834,2]
[422304590,1778807442000,-151.62967,0.00017808,2]
[422304607,1778807442000,-500.0,0.00018052,2]
[422304605,1778807442000,-1066.39130912,0.00018,2]
[422304613,1778807442000,-2458.5,0.0001841,2]
[422304606,1778807442000,-350.0,0.00018,2]
[422304609,1778807442000,-1066.39130912,0.000182,2]
[422304608,1778807442000,-540.0,0.00018185,2]
[422304623,1778807442000,-251.11897888,0.00018546,2]
[422304601,1778807442000,-217.15233878,0.00017998,2]
[422304603,1778807442000,-348.0827721,0.00017998,2]
[422304604,1778807442000,-242.15909246,0.00017998,2]
[422304615,1778807442000,-807.0,0.00018497,2]
[422304600,1778807442000,-242.15909246,0.00017998,2]
[422304610,1778807442000,-789.58,0.00018216,2]
[422304602,1778807442000,-2405.55389864,0.00017998,2]
[422304680,1778807443000,-400.0,0.00019232,2]
[422304686,1778807443000,-789.58,0.00019312,2]
[422304679,1778807443000,-400.0,0.00019232,2]
[422304683,1778807443000,-400.0,0.00019232,2]
[422304692,1778807443000,-550.0,0.00019358,2]
[422304687,1778807443000,-550.0,0.00019358,2]
[422304688,1778807443000,-550.0,0.00019358,2]
[422304684,1778807443000,-400.0,0.00019232,2]
[422304691,1778807443000,-550.0,0.00019358,2]
[422304690,1778807443000,-550.0,0.00019358,2]
[422304685,1778807443000,-299.0,0.00019232,2]
[422304695,1778807443000,-647.0,0.00019358,2]
[422304689,1778807443000,-550.0,0.00019358,2]
[422304693,1778807443000,-550.0,0.00019358,2]
[422304696,1778807443000,-235.53,0.00019384,7]
[422304706,1778807443000,-150.0,0.000196,2]
[422304697,1778807443000,-180.1766429,0.00019466,2]
[422304700,1778807443000,-250.0,0.00019525,2]
[422304703,1778807443000,-150.0,0.000196,2]
[422304698,1778807443000,-250.0,0.00019525,2]
[422304701,1778807443000,-370.0,0.00019525,2]
[422304704,1778807443000,-150.0,0.000196,2]
[422304676,1778807443000,-400.0,0.00019232,2]
[422304694,1778807443000,-550.0,0.00019358,2]
[422304678,1778807443000,-400.0,0.00019232,2]
[422304668,1778807443000,-2000.0,0.00019186,2]
[422304677,1778807443000,-400.0,0.00019232,2]
[422304654,1778807443000,-151.0,0.00019178,2]
[422304653,1778807443000,-151.0,0.00019178,2]
[422304656,1778807443000,-151.0,0.00019178,2]
[422304655,1778807443000,-151.0,0.00019178,2]
[422304652,1778807443000,-151.0,0.00019178,2]
[422304657,1778807443000,-259.545484,0.00019178,2]
[422304659,1778807443000,-299.892273,0.00019178,2]
[422304658,1778807443000,-151.0,0.00019178,2]
[422304669,1778807443000,-2000.0,0.00019186,2]
[422304663,1778807443000,-1000.0,0.00019184,2]
[422304661,1778807443000,-1486.0,0.00019184,2]
[422304674,1778807443000,-2000.0,0.00019186,2]
[422304665,1778807443000,-945.0,0.00019184,2]
[422304664,1778807443000,-1000.0,0.00019184,2]
[422304662,1778807443000,-1000.0,0.00019184,2]
[422304666,1778807443000,-2000.0,0.00019186,2]
[422304667,1778807443000,-2000.0,0.00019186,2]
[422304671,1778807443000,-2000.0,0.00019186,2]
[422304681,1778807443000,-400.0,0.00019232,2]
[422304682,1778807443000,-400.0,0.00019232,2]
[422304672,1778807443000,-2000.0,0.00019186,2]
[422304670,1778807443000,-2000.0,0.00019186,2]
[422304673,1778807443000,-2000.0,0.00019186,2]
[422304675,1778807443000,-2000.0,0.00019186,2]
[422304660,1778807443000,-2000.0,0.00019184,2]
[422304705,1778807443000,-150.0,0.000196,2]
[422304699,1778807443000,-250.0,0.00019525,2]
[422304707,1778807443000,-150.0,0.000196,2]
[422304740,1778807443000,-3245.0,0.0002,2]
[422304741,1778807443000,-4191.0,0.0002,2]
[422304732,1778807443000,-486.06187678,0.0002,2]
[422304734,1778807443000,-152.0,0.0002,2]
[422304739,1778807443000,-522.0,0.0002,2]
[422304736,1778807443000,-400.0,0.0002,2]
[422304742,1778807443000,-396.0,0.0002,2]
[422304745,1778807443000,-906.0,0.0002,2]
[422304744,1778807443000,-2000.0,0.0002,2]
[422304750,1778807443000,-150.0,0.0002,2]
[422304753,1778807443000,-8248.76,0.0002,2]
[422304733,1778807443000,-47193.15194855,0.0002,2]
[422304746,1778807443000,-476.0,0.0002,2]
[422304749,1778807443000,-1953.0,0.0002,2]
[422304747,1778807443000,-301.0,0.0002,2]
[422304752,1778807443000,-150.0,0.0002,2]
[422304751,1778807443000,-156.397207,0.0002,2]
[422304755,1778807443000,-2000.0,0.0002001,2]
[422304758,1778807443000,-225.18697532,0.00020186,2]
[422304757,1778807443000,-527.7696768,0.0002012,2]
[422304756,1778807443000,-3244.034704,0.0002002,2]
[422304754,1778807443000,-214.926817,0.00020002,2]
[422304759,1778807443000,-621.78829552,0.00020188,2]
[422304702,1778807443000,-318.55,0.00019586,2]
[422304743,1778807443000,-286.0,0.0002,2]
[422304730,1778807443000,-1310.90285881,0.0002,2]
[422304748,1778807443000,-485.0,0.0002,2]
[422304731,1778807443000,-263.58477627,0.0002,30]
[422304737,1778807443000,-718.0,0.0002,2]
[422304710,1778807443000,-200.0,0.00019642,2]
[422304712,1778807443000,-242.15909246,0.00019642,2]
[422304711,1778807443000,-270.0455652,0.00019642,2]
[422304714,1778807443000,-388.16716719,0.00019642,2]
[422304718,1778807443000,-171.33427658,0.00019926,12]
[422304715,1778807443000,-1000.0,0.00019863,10]
[422304709,1778807443000,-184.51963963,0.000196,2]
[422304708,1778807443000,-150.0,0.000196,2]
[422304717,1778807443000,-2003.81543517,0.000199,3]
[422304716,1778807443000,-468.62,0.00019863,2]
[422304720,1778807443000,-300.0,0.00019999,2]
[422304713,1778807443000,-2682.57183977,0.00019642,2]
[422304726,1778807443000,-178.67497879,0.0002,2]
[422304719,1778807443000,-152.0,0.0001995,3]
[422304735,1778807443000,-467.71167669,0.0002,2]
[422304738,1778807443000,-276.0,0.0002,2]
[422304727,1778807443000,-25906.72029551,0.0002,2]
[422304722,1778807443000,-8159.0,0.0002,2]
[422304729,1778807443000,-26760.20964395,0.0002,2]
[422304723,1778807443000,-1398.0,0.0002,2]
[422304725,1778807443000,-1552.79383552,0.0002,2]
[422304724,1778807443000,-7076.52822619,0.0002,2]
[422304721,1778807443000,-300.0,0.00019999,2]
[422304728,1778807443000,-3950.0,0.0002,2]
[422304789,1778807444000,-199.47026326,0.00021,2]
[422304799,1778807444000,-286.0,0.00021,2]
[422304788,1778807444000,-1208.58873252,0.00021,2]
[422304791,1778807444000,-10000.0,0.00021,2]
[422304798,1778807444000,-396.0,0.00021,2]
[422304793,1778807444000,-718.0,0.00021,2]
[422304794,1778807444000,-276.0,0.00021,2]
[422304790,1778807444000,-3409.17594098,0.00021,7]
[422304792,1778807444000,-283.0,0.00021,2]
[422304796,1778807444000,-3245.0,0.00021,2]
[422304797,1778807444000,-4191.0,0.00021,2]
[422304812,1778807444000,-2000.0,0.00021112,2]
[422304801,1778807444000,-476.0,0.00021,2]
[422304803,1778807444000,-485.0,0.00021,2]
[422304802,1778807444000,-301.0,0.00021,2]
[422304807,1778807444000,-150.0,0.00021,2]
[422304804,1778807444000,-1953.0,0.00021,2]
[422304806,1778807444000,-500.0,0.00021,2]
[422304805,1778807444000,-1000.0,0.00021,2]
[422304808,1778807444000,-525.0485446,0.00021,2]
[422304809,1778807444000,-497.45,0.00021019,2]
[422304810,1778807444000,-2000.0,0.00021112,2]
[422304783,1778807444000,-260.4103811,0.00020738,2]
[422304795,1778807444000,-522.0,0.00021,2]
[422304781,1778807444000,-200.0,0.00020738,2]
[422304763,1778807444000,-251.11897888,0.0002019,2]
[422304779,1778807444000,-1327.49,0.000207,2]
[422304811,1778807444000,-2000.0,0.00021112,2]
[422304760,1778807444000,-721.12765535,0.00020188,2]
[422304761,1778807444000,-200.0,0.0002019,2]
[422304764,1778807444000,-2781.82699784,0.0002019,2]
[422304762,1778807444000,-280.03725112,0.0002019,2]
[422304770,1778807444000,-150.15322364,0.000205,20]
[422304766,1778807444000,-1436.59522057,0.0002026,2]
[422304767,1778807444000,-497.45,0.00020341,2]
[422304765,1778807444000,-228.84384861,0.0002019,2]
[422304769,1778807444000,-3048.95153781,0.0002041,30]
[422304775,1778807444000,-181.21297485,0.00020548,2]
[422304785,1778807444000,-2484.20277485,0.000209,30]
[422304773,1778807444000,-300.0,0.00020547,2]
[422304772,1778807444000,-154.0,0.000205,3]
[422304771,1778807444000,-150.67508895,0.000205,20]
[422304774,1778807444000,-21796.06,0.00020548,2]